bitfinex/quotes_SOLUSD_20220212
["timestamp","ask_amount","ask_price","bid_price","bid_amount"]
[1644685473047,39.26446324,97.538,97.47,15.3902]
[1644685473249,1.44494976,97.535,97.47,15.3902]
[1644685473648,1.44494976,97.536,97.47,15.3902]
[1644685473849,1.44494976,97.537,97.47,15.3902]
[1644685474848,0.25,97.536,97.47,15.3902]
[1644685475050,1.44494976,97.534,97.47,15.3902]
[1644685475253,1.44494976,97.527,97.47,15.3902]
[1644685475451,5.128,97.526,97.45,15.3933]
[1644685475653,1.44494976,97.513,97.45,15.3933]
[1644685475856,1.44494976,97.513,97.42,51.3167]
[1644685475857,5.378,97.512,97.42,51.3167]
[1644685476050,1.44494976,97.497,97.42,51.3167]
[1644685476253,1.44494976,97.495,97.437,44.59875103]
[1644685476650,0.25,97.494,97.437,44.59875103]
[1644685476852,0.25,97.494,97.438,0.25]
[1644685477256,1.69494976,97.494,97.43,15.3969]
[1644685477452,1.44494976,97.489,97.382,5.13]
[1644685477654,1.44494976,97.466,97.382,5.13]
[1644685477856,1.44494976,97.46,97.382,5.13]
[1644685478251,46.05761042,97.459,97.383,36.12389411]
[1644685478452,46.05761042,97.459,97.39,15.4028]
[1644685478654,45.80761042,97.459,97.391,0.25]
[1644685479552,0.25,97.458,97.382,5.13]
[1644685479754,6.82694976,97.458,97.382,5.13]
[1644685480152,1.44494976,97.452,97.382,5.13]
[1644685480456,1.44494976,97.448,97.382,3.63]
[1644685480652,0.25,97.451,97.39,15.4038]
[1644685481254,45.80761042,97.459,97.391,0.25]
[1644685481452,0.25,97.458,97.391,0.25]
[1644685481653,5.132,97.458,97.391,0.25]
[1644685482855,0.25,97.457,97.391,0.25]
[1644685483254,0.25,97.458,97.391,0.25]
[1644685483454,5.382,97.458,97.391,0.25]
[1644685483858,5.382,97.458,97.4,15.4022]
[1644685484155,0.25,97.458,97.401,37.42079012]
[1644685485055,0.25,97.458,97.4,15.4022]
[1644685485256,5.131,97.457,97.4,15.4022]
[1644685485760,0.25,97.456,97.4,15.4022]
[1644685486058,0.25,97.456,97.391,0.25]
[1644685486258,5.132,97.455,97.391,0.25]
[1644685486455,0.25,97.456,97.391,0.25]
[1644685486656,45.80761042,97.459,97.391,0.25]
[1644685486856,45.80761042,97.459,97.392,5.132]
[1644685487055,45.80761042,97.459,97.4,15.4024]
[1644685487255,45.80761042,97.459,97.401,34.74145914]
[1644685487455,5.131,97.458,97.401,34.74145914]
[1644685487656,45.80761042,97.459,97.401,34.74145914]
[1644685489461,45.80761042,97.459,97.4,15.4024]
[1644685489861,5.131,97.458,97.4,15.4024]
[1644685490061,5.131,97.458,97.391,0.25]
[1644685490265,104.0,97.456,97.374,2.62390296]
[1644685490563,1.44494976,97.448,97.357,53.38110154]
[1644685490768,5.133,97.447,97.357,48.24910154]
[1644685490961,36.49718777,97.444,97.344,5.133]
[1644685491163,24.5849,97.443,97.344,5.133]
[1644685491368,24.8349,97.443,97.352,5.133]
[1644685491768,30.2191,97.44,97.331,0.024]
[1644685491964,30.2191,97.44,97.325,15.5632]
[1644685491965,1.44494976,97.434,97.33,0.024]
[1644685492165,1.44494976,97.423,97.326,36.17995263]
[1644685492366,104.0,97.421,97.327,0.024]
[1644685492766,15.4137,97.41,97.32,15.415]
[1644685493064,5.135,97.409,97.321,0.024]
[1644685493267,5.385,97.409,97.321,0.024]
[1644685493464,5.385,97.409,97.321,45.43081738]
[1644685493666,5.385,97.409,97.322,0.024]
[1644685493864,5.385,97.409,97.322,0.274]
[1644685494069,5.385,97.409,97.323,0.024]
[1644685494266,104.0,97.399,97.323,0.024]
[1644685494465,104.0,97.399,97.322,0.25]
[1644685494466,5.135,97.398,97.322,0.25]
[1644685494667,104.0,97.397,97.322,0.25]
[1644685494867,104.25,97.397,97.322,0.25]
[1644685495066,48.47462688,97.396,97.322,0.25]
[1644685495364,0.25,97.395,97.322,0.25]
[1644685495567,5.135,97.394,97.322,0.25]
[1644685495771,15.4172,97.39,97.322,0.25]
[1644685495967,104.0,97.388,97.322,0.25]
[1644685496165,5.135,97.387,97.302,0.024]
[1644685496368,0.25,97.393,97.323,2.62390296]
[1644685496567,43.33962688,97.396,97.324,41.09061391]
[1644685496769,43.33962688,97.396,97.324,46.22561391]
[1644685496967,43.33962688,97.396,97.325,2.62390296]
[1644685497167,43.33962688,97.396,97.325,7.75890296]
[1644685497368,0.25,97.395,97.34,15.4117]
[1644685497569,5.385,97.395,97.34,15.4117]
[1644685497971,6.57994976,97.428,97.34,15.4117]
[1644685498170,6.57994976,97.428,97.341,2.62390296]
[1644685498373,0.25,97.427,97.341,2.62390296]
[1644685498970,0.25,97.427,97.342,35.10029259]
[1644685499374,5.134,97.426,97.34,15.4108]
[1644685499777,0.25,97.425,97.34,15.4108]
[1644685499979,5.384,97.425,97.34,15.4108]
[1644685500179,0.25,97.425,97.34,15.4108]
[1644685500380,5.134,97.424,97.34,15.4108]
[1644685500580,0.25,97.425,97.341,5.134]
[1644685501178,0.25,97.425,97.35,15.4098]
[1644685501581,5.134,97.424,97.35,15.4098]
[1644685501805,5.133,97.436,97.35,15.4098]
[1644685502903,0.25,97.435,97.35,15.4098]
[1644685503104,5.133,97.434,97.35,15.4098]
[1644685503303,5.133,97.435,97.35,15.4098]
[1644685503506,5.133,97.436,97.35,15.4098]
[1644685504405,0.25,97.435,97.35,15.4098]
[1644685504606,5.133,97.434,97.35,15.4098]
[1644685504804,0.25,97.433,97.35,15.4098]
[1644685505003,36.10460451,97.437,97.37,15.4064]
[1644685506309,5.133,97.436,97.341,32.66630296]
[1644685506506,1.44837625,97.432,97.35,15.4093]
[1644685506706,1.69837625,97.431,97.351,5.133]
[1644685506907,0.25,97.431,97.351,5.133]
[1644685507108,1.69837625,97.431,97.351,5.133]
[1644685507306,1.69837625,97.431,97.349,43.32174174]
[1644685507505,5.133,97.43,97.349,43.32174174]
[1644685507705,5.133,97.43,97.341,24.9084]
[1644685507706,0.25,97.429,97.35,0.25]
[1644685507905,5.134,97.428,97.35,0.25]
[1644685508106,6.58237625,97.428,97.341,24.9084]
[1644685508309,2.87390296,97.427,97.34,15.4111]
[1644685508508,1.44837625,97.416,97.336,0.024]
[1644685508712,34.5388529,97.403,97.324,0.024]
[1644685508910,1.44837625,97.398,97.316,0.024]
[1644685509107,5.135,97.397,97.306,0.024]
[1644685509309,5.136,97.4,97.306,5.16]
[1644685509508,0.25,97.396,97.307,0.024]
[1644685509709,0.25,97.396,97.308,5.136]
[1644685509915,64.0,97.395,97.308,5.136]
[1644685510112,1.44837625,97.37,97.271,2.62390296]
[1644685510313,16.25837625,97.36,97.256,4.636]
[1644685510514,1.44837625,97.347,97.21,19.946]
[1644685510712,5.389,97.346,97.211,0.024]
[1644685510913,162.5581239,97.345,97.212,5.139]
[1644685511113,162.5581239,97.345,97.213,0.024]
[1644685511315,104.0,97.339,97.251,39.61784998]
[1644685511714,0.25,97.338,97.231,5.139]
[1644685511917,0.25,97.338,97.212,5.139]
[1644685511918,5.389,97.338,97.212,5.139]
[1644685512115,5.389,97.338,97.212,5.163]
[1644685512314,5.389,97.338,97.213,2.64790296]
[1644685512519,15.4266,97.33,97.24,15.427]
[1644685512714,47.54377012,97.329,97.241,40.75033923]
[1644685512914,47.54377012,97.329,97.242,5.139]
[1644685513515,47.54377012,97.329,97.25,15.4255]
[1644685515218,47.29377012,97.329,97.25,15.4255]
[1644685515814,42.15477012,97.329,97.27,15.4211]
[1644685516014,42.15477012,97.329,97.271,39.71452411]
[1644685516420,0.25,97.328,97.271,39.71452411]
[1644685516714,42.15477012,97.329,97.271,39.71452411]
[1644685517116,42.15477012,97.329,97.28,15.4209]
[1644685520421,42.15477012,97.329,97.272,5.138]
[1644685520619,5.388,97.328,97.272,5.138]
[1644685521821,108.07227921,97.327,97.21,14.81]
[1644685522020,104.0,97.325,97.214,0.024]
[1644685522222,1.44837625,97.311,97.198,5.164]
[1644685522419,46.99448044,97.31,97.192,44.20572132]
[1644685522621,1.44837625,97.308,97.193,0.024]
[1644685522820,5.391,97.307,97.194,5.141]
[1644685523022,0.25,97.307,97.195,0.024]
[1644685523224,5.141,97.306,97.195,0.024]
[1644685523721,0.25,97.305,97.22,15.43]
[1644685523921,0.25,97.305,97.221,41.29147536]
[1644685524129,0.25,97.305,97.221,41.26747536]
[1644685524324,5.14,97.304,97.221,41.26747536]
[1644685524524,5.14,97.304,97.222,0.25]
[1644685524722,5.14,97.334,97.23,15.4278]
[1644685524923,5.14,97.344,97.241,104.0]
[1644685525124,1.44837625,97.353,97.25,14.81]
[1644685525324,5.14,97.358,97.25,14.81]
[1644685525524,24.3788,97.369,97.251,119.19835742]
[1644685525724,5.138,97.357,97.252,35.81980509]
[1644685525924,5.138,97.357,97.253,5.138]
[1644685526127,5.138,97.367,97.253,5.162]
[1644685526324,5.138,97.367,97.254,0.024]
[1644685526525,52.43140696,97.368,97.255,5.138]
[1644685526727,0.25,97.367,97.26,15.4193]
[1644685526929,5.388,97.367,97.261,5.162]
[1644685527226,5.388,97.367,97.262,0.024]
[1644685527627,5.388,97.367,97.261,0.024]
[1644685528528,5.138,97.367,97.29,15.4178]
[1644685528729,15.4169,97.4,97.29,15.4178]
[1644685528730,5.138,97.368,97.29,41.3578]
[1644685528929,1.44837625,97.388,97.291,0.024]
[1644685529131,1.44837625,97.384,97.29,25.94]
[1644685529336,1.44837625,97.385,97.291,0.024]
[1644685529532,45.17795994,97.384,97.291,38.14581316]
[1644685529732,0.25,97.383,97.31,15.4133]
[1644685529931,45.17795994,97.384,97.311,35.71898287]
[1644685530335,5.136,97.383,97.311,35.71898287]
[1644685530550,45.17795994,97.384,97.312,5.136]
[1644685531148,5.136,97.383,97.311,35.71898287]
[1644685531747,0.25,97.382,97.31,15.4155]
[1644685531950,5.136,97.381,97.31,15.4155]
[1644685532151,7.75990296,97.381,97.31,15.4155]
[1644685532348,0.25,97.38,97.311,0.25]
[1644685532553,5.136,97.379,97.311,0.25]
[1644685532749,0.25,97.378,97.311,44.88551887]
[1644685532948,0.25,97.378,97.311,44.63551887]
[1644685533148,5.136,97.377,97.311,44.63551887]
[1644685533349,0.25,97.376,97.311,44.63551887]
[1644685533548,5.136,97.375,97.32,15.4151]
[1644685533749,45.17795994,97.384,97.32,15.4151]
[1644685534150,45.17795994,97.384,97.321,0.25]
[1644685534650,5.135,97.383,97.311,44.63551887]
[1644685534849,45.17795994,97.384,97.301,0.024]
[1644685535050,7.75990296,97.382,97.31,15.4154]
[1644685535252,1.44837625,97.381,97.31,15.4154]
[1644685535466,6.58437625,97.381,97.283,0.024]
[1644685535663,1.44837625,97.374,97.282,0.024]
[1644685535866,1.69837625,97.373,97.284,0.024]
[1644685536063,1.44837625,97.372,97.283,0.024]
[1644685536265,0.25,97.371,97.283,0.024]
[1644685536464,43.87819575,97.369,97.301,39.46400472]
[1644685536763,0.25,97.368,97.301,39.46400472]
[1644685537365,1.44837625,97.362,97.302,0.25]
[1644685537765,0.25,97.361,97.302,0.25]
[1644685538766,1.44837625,97.363,97.302,0.25]
[1644685538767,0.25,97.362,97.302,0.25]
[1644685539167,5.136,97.361,97.302,0.25]
[1644685539470,1.44837625,97.363,97.302,0.25]
[1644685539668,1.44837625,97.366,97.303,5.136]
[1644685539868,1.44837625,97.368,97.303,5.136]
[1644685540267,45.326572,97.369,97.303,5.136]
[1644685540469,15.4174,97.39,97.31,15.4165]
[1644685540470,1.44837625,97.366,97.31,15.4165]
[1644685540670,1.44837625,97.373,97.31,15.4165]
[1644685540968,1.44837625,97.381,97.311,5.136]
[1644685541169,1.44837625,97.39,97.311,7.75990296]
[1644685541368,1.44837625,97.39,97.312,50.38930296]
[1644685541570,1.44837625,97.394,97.313,5.136]
[1644685541769,1.44837625,97.397,97.313,7.78390296]
[1644685541972,1.44837625,97.398,97.314,2.62390296]
[1644685542368,38.93219445,97.399,97.314,2.64790296]
[1644685542571,38.93219445,97.399,97.315,0.024]
[1644685542767,1.44837625,97.396,97.331,37.86664513]
[1644685542968,0.25,97.398,97.331,37.86664513]
[1644685543171,1.44837625,97.391,97.331,37.86664513]
[1644685543368,5.135,97.39,97.331,37.86664513]
[1644685543568,5.135,97.394,97.331,37.86664513]
[1644685543769,5.135,97.392,97.34,15.4119]
[1644685544068,5.135,97.393,97.34,15.4119]
[1644685544270,5.135,97.395,97.34,15.4119]
[1644685544471,1.44837625,97.405,97.34,15.4119]
[1644685544672,1.44837625,97.407,97.34,15.4119]
[1644685544971,1.44837625,97.408,97.34,15.4119]
[1644685545172,1.44837625,97.415,97.36,15.407]
[1644685545371,44.20027664,97.415,97.361,41.51844748]
[1644685545571,1.44837625,97.419,97.361,46.65244748]
[1644685545972,1.44837625,97.419,97.361,41.51844748]
[1644685546372,1.44837625,97.424,97.361,41.51844748]
[1644685546571,40.53225382,97.422,97.361,41.51844748]
[1644685546773,1.44837625,97.422,97.37,15.4071]
[1644685546973,1.44837625,97.423,97.37,15.4071]
[1644685547178,1.44837625,97.425,97.37,15.4071]
[1644685547373,1.44837625,97.426,97.37,15.4071]
[1644685547573,0.25,97.424,97.37,15.4071]
[1644685548374,46.18520237,97.432,97.37,15.4071]
[1644685548375,1.44837625,97.431,97.37,15.4071]
[1644685548675,46.18520237,97.432,97.37,15.4071]
[1644685549677,5.383,97.431,97.37,15.4071]
[1644685549875,0.25,97.431,97.37,15.4071]
[1644685551076,5.133,97.43,97.37,15.4071]
[1644685551276,0.25,97.429,97.37,15.4071]
[1644685551674,46.18520237,97.432,97.37,15.4071]
[1644685553076,5.17411477,97.446,97.371,111.75690296]
[1644685553077,0.04111477,97.446,97.371,111.75690296]
[1644685553275,0.04111477,97.449,97.39,15.3983]
[1644685553474,0.04111477,97.449,97.371,111.75690296]
[1644685553475,1.44837625,97.457,97.391,5.132]
[1644685553676,0.04111477,97.456,97.391,7.75590296]
[1644685553875,1.44837625,97.463,97.392,47.6296]
[1644685554075,1.44837625,97.464,97.393,39.88011758]
[1644685554283,48.19499722,97.469,97.393,42.50402054]
[1644685554475,49.64337347,97.469,97.393,39.88011758]
[1644685554675,1.44837625,97.468,97.394,2.62390296]
[1644685554880,1.44837625,97.467,97.411,35.404618]
[1644685555076,1.44837625,97.468,97.411,35.404618]
[1644685555276,48.19499722,97.469,97.411,35.404618]
[1644685555277,1.44837625,97.466,97.411,35.404618]
[1644685555475,5.131,97.467,97.411,35.404618]
[1644685555476,1.44837625,97.467,97.411,35.404618]
[1644685555676,5.131,97.466,97.411,35.404618]
[1644685556076,6.57937625,97.466,97.411,35.404618]
[1644685556278,1.44837625,97.466,97.411,35.404618]
[1644685556478,5.131,97.468,97.411,35.404618]
[1644685557083,5.131,97.468,97.41,15.398]
[1644685557281,5.131,97.468,97.394,2.62390296]
[1644685557282,1.44837625,97.463,97.394,2.62390296]
[1644685557482,1.44837625,97.451,97.365,5.131]
[1644685557680,1.44837625,97.443,97.342,47.9532]
[1644685557880,1.44837625,97.437,97.342,47.9532]
[1644685558081,1.44837625,97.437,97.343,45.06084825]
[1644685558280,6.58137625,97.436,97.344,5.133]
[1644685558481,1.44837625,97.434,97.344,5.133]
[1644685558681,25.08147625,97.435,97.344,5.133]
[1644685558883,5.134,97.434,97.371,46.72096407]
[1644685559383,5.134,97.434,97.37,15.4061]
[1644685559585,1.44837625,97.43,97.344,5.133]
[1644685559784,1.44837625,97.427,97.344,5.133]
[1644685560286,44.83464037,97.426,97.345,39.08317579]
[1644685560485,49.96864037,97.426,97.345,39.08317579]
[1644685560685,49.96864037,97.426,97.35,15.41]
[1644685560886,44.83464037,97.426,97.351,5.134]
[1644685561288,44.83464037,97.426,97.347,5.134]
[1644685561486,5.134,97.425,97.346,2.87390296]
[1644685561786,5.134,97.425,97.36,15.4074]
[1644685561987,5.134,97.425,97.361,47.33424345]
[1644685562590,0.25,97.424,97.361,47.33424345]
[1644685563286,0.25,97.425,97.361,47.33424345]
[1644685563888,1.69837625,97.425,97.361,47.33424345]
[1644685564598,5.133,97.424,97.361,47.33424345]
[1644685564787,0.25,97.423,97.361,47.33424345]
[1644685565489,1.69837625,97.423,97.361,47.33424345]
[1644685566191,1.44837625,97.422,97.361,47.33424345]
[1644685566589,0.25,97.421,97.361,47.33424345]
[1644685567695,1.69837625,97.422,97.361,47.33424345]
[1644685567893,1.44837625,97.421,97.361,47.33424345]
[1644685568094,0.25,97.422,97.37,15.4071]
[1644685568298,1.44837625,97.421,97.37,15.4071]
[1644685568494,44.83464037,97.426,97.37,15.4071]
[1644685569917,49.96764037,97.426,97.37,15.4071]
[1644685570120,5.133,97.426,97.37,15.4071]
[1644685570318,1.44837625,97.432,97.37,15.4071]
[1644685570519,1.44837625,97.427,97.37,15.4071]
[1644685570717,1.44837625,97.43,97.38,15.4036]
[1644685570917,1.44837625,97.429,97.38,15.4036]
[1644685571121,42.68423817,97.428,97.381,38.3854743]
[1644685571719,1.44837625,97.427,97.381,38.3854743]
[1644685572122,1.44837625,97.428,97.381,38.3854743]
[1644685572320,1.44837625,97.428,97.39,15.404]
[1644685572719,1.44837625,97.429,97.39,15.404]
[1644685573123,35.43728248,97.428,97.39,15.404]
[1644685573522,36.88565873,97.428,97.39,15.404]
[1644685573724,35.43728248,97.428,97.39,15.404]
[1644685573924,36.88565873,97.428,97.39,15.404]
[1644685574325,1.44837625,97.427,97.39,15.404]
[1644685574926,1.44837625,97.426,97.39,15.404]
[1644685575125,1.44837625,97.427,97.39,15.404]
[1644685575926,1.44837625,97.426,97.39,15.404]
[1644685577027,1.44837625,97.424,97.39,15.404]
[1644685577426,43.98602173,97.436,97.39,15.404]
[1644685577427,1.44837625,97.425,97.39,15.404]
[1644685577629,1.44837625,97.427,97.39,15.404]
[1644685577829,1.44837625,97.426,97.39,15.404]
[1644685578228,9.17924566,97.45,97.37,15.4062]
[1644685578229,1.44837625,97.419,97.37,15.4062]
[1644685578427,1.44837625,97.419,97.383,0.25]
[1644685578629,14.81,97.47,97.383,0.25]
[1644685578630,1.44837625,97.418,97.383,0.25]
[1644685578829,1.44837625,97.419,97.383,0.25]
[1644685579231,1.44837625,97.427,97.383,0.25]
[1644685579729,1.44837625,97.424,97.39,15.4037]
[1644685579930,1.44837625,97.423,97.39,15.4037]
[1644685580130,1.44837625,97.425,97.391,39.32855495]
[1644685580539,1.44837625,97.424,97.391,39.32855495]
[1644685580729,1.44837625,97.425,97.391,39.32855495]
[1644685581132,1.44837625,97.426,97.391,39.32855495]
[1644685581733,1.44837625,97.423,97.391,39.32855495]
[1644685581932,1.44837625,97.422,97.391,39.32855495]
[1644685582132,3.03219997,97.42,97.391,39.32855495]
[1644685582432,3.03219997,97.42,97.383,0.25]
[1644685582931,1.44837625,97.42,97.361,4.883]
[1644685583134,1.44837625,97.423,97.381,0.25]
[1644685583331,1.44837625,97.425,97.381,0.25]
[1644685583534,1.44837625,97.426,97.381,0.25]
[1644685583732,1.44837625,97.425,97.39,15.404]
[1644685583932,1.44837625,97.426,97.391,39.84590239]
[1644685584133,1.44837625,97.424,97.391,39.84590239]
[1644685584333,1.44837625,97.421,97.391,39.84590239]
[1644685584732,1.44837625,97.422,97.391,39.84590239]
[1644685586339,1.44837625,97.418,97.391,39.84590239]
[1644685588742,1.44837625,97.42,97.391,39.84590239]
[1644685589941,1.44837625,97.414,97.364,5.133]
[1644685590142,1.44837625,97.402,97.364,5.133]
[1644685590340,1.44837625,97.394,97.364,5.133]
[1644685590540,1.44837625,97.396,97.364,5.133]
[1644685591142,1.44837625,97.399,97.364,5.133]
[1644685591344,4.48057622,97.4,97.364,5.133]
[1644685592141,4.48057622,97.4,97.365,0.25]
[1644685592541,3.03219997,97.4,97.365,0.25]
[1644685595142,4.48057622,97.4,97.365,0.25]
[1644685595945,3.03219997,97.4,97.365,0.25]
[1644685596743,4.48057622,97.4,97.365,0.25]
[1644685596944,1.44837625,97.4,97.365,0.25]
[1644685597147,1.44837625,97.404,97.365,0.25]
[1644685597546,1.44837625,97.405,97.365,0.25]
[1644685597745,5.134,97.425,97.37,15.4068]
[1644685597746,1.44837625,97.407,97.37,15.4068]
[1644685597944,1.44837625,97.413,97.37,15.4068]
[1644685598344,1.44837625,97.413,97.371,5.133]
[1644685598545,5.133,97.458,97.371,5.133]
[1644685598546,1.44837625,97.417,97.371,5.133]
[1644685598751,1.44837625,97.417,97.366,5.133]
[1644685599152,1.44837625,97.417,97.366,7.25690296]
[1644685599547,1.44837625,97.418,97.366,7.25690296]
[1644685599748,1.44837625,97.418,97.38,15.4034]
[1644685600048,1.44837625,97.42,97.381,38.33618682]
[1644685600652,1.44837625,97.421,97.381,38.33618682]
[1644685600848,1.44837625,97.421,97.382,2.62390296]
[1644685601051,1.44837625,97.421,97.382,7.75690296]
[1644685601451,1.44837625,97.421,97.383,2.62390296]
[1644685601653,1.44837625,97.422,97.384,5.133]
[1644685601851,1.44837625,97.423,97.39,15.4031]
[1644685602052,1.44837625,97.422,97.39,15.4031]
[1644685602353,1.44837625,97.426,97.39,15.4031]
[1644685603879,1.44837625,97.427,97.39,15.4031]
[1644685605077,1.44837625,97.426,97.39,15.4031]
[1644685605879,1.44837625,97.429,97.39,15.4031]
[1644685606079,1.44837625,97.43,97.39,15.4031]
[1644685606485,1.44837625,97.431,97.39,15.4031]
[1644685606880,1.44837625,97.432,97.39,15.4031]
[1644685607081,1.44837625,97.428,97.39,15.4031]
[1644685607282,1.44837625,97.427,97.39,15.4031]
[1644685607681,1.44837625,97.425,97.39,15.4031]
[1644685607882,1.44837625,97.426,97.39,15.4031]
[1644685608282,1.44837625,97.424,97.39,15.4031]
[1644685608483,1.44837625,97.423,97.39,15.4031]
[1644685608683,1.44837625,97.423,97.381,38.33618682]
[1644685608883,1.44837625,97.423,97.37,15.406]
[1644685608884,1.44837625,97.415,97.37,15.406]
[1644685609087,1.44837625,97.406,97.37,15.406]
[1644685609484,1.44837625,97.404,97.37,15.406]
[1644685609684,1.44837625,97.407,97.37,15.406]
[1644685609885,1.44837625,97.407,97.371,34.35063702]
[1644685610286,1.44837625,97.41,97.38,15.4055]
[1644685610490,1.44837625,97.412,97.38,15.4055]
[1644685610886,1.44837625,97.41,97.372,0.25]
[1644685611085,1.44837625,97.409,97.372,0.25]
[1644685611285,1.44837625,97.409,97.345,5.133]
[1644685611487,1.44837625,97.404,97.337,5.134]
[1644685611689,1.44837625,97.403,97.36,15.4075]
[1644685611885,5.134,97.402,97.36,15.4075]
[1644685612287,1.44837625,97.406,97.361,42.10222055]
[1644685612687,1.44837625,97.406,97.362,0.25]
[1644685613087,1.44837625,97.403,97.362,0.25]
[1644685613287,1.44837625,97.406,97.362,0.25]
[1644685613688,5.134,97.405,97.362,0.25]
[1644685613889,1.44837625,97.404,97.362,0.25]
[1644685614091,1.44837625,97.406,97.362,0.25]
[1644685614297,1.44837625,97.407,97.362,0.25]
[1644685614490,1.44837625,97.406,97.362,0.25]
[1644685615492,1.44837625,97.41,97.36,15.4075]
[1644685615693,1.44837625,97.4,97.342,5.134]
[1644685615893,1.44837625,97.392,97.342,5.134]
[1644685616094,1.44837625,97.386,97.342,5.134]
[1644685616299,1.44837625,97.386,97.34,15.4107]
[1644685616300,5.135,97.385,97.34,15.4107]
[1644685616493,5.135,97.385,97.341,44.34913753]
[1644685616693,1.44837625,97.393,97.341,44.34913753]
[1644685616896,1.44837625,97.393,97.342,0.25]
[1644685617096,1.44837625,97.396,97.342,0.25]
[1644685617394,1.44837625,97.397,97.35,15.4099]
[1644685617794,1.44837625,97.395,97.35,15.4099]
[1644685618094,1.44837625,97.394,97.35,15.4099]
[1644685618294,1.44837625,97.393,97.35,15.4099]
[1644685618495,1.44837625,97.392,97.35,15.4099]
[1644685618896,1.44837625,97.391,97.35,15.4099]
[1644685619098,22.6129,97.412,97.35,15.4099]
[1644685619099,1.44837625,97.392,97.35,15.4099]
[1644685619297,1.44837625,97.4,97.35,18.03380296]
[1644685619598,1.44837625,97.405,97.36,15.4072]
[1644685619796,1.44837625,97.405,97.361,5.134]
[1644685619998,1.44837625,97.407,97.352,5.134]
[1644685620195,1.44837625,97.407,97.342,0.25]
[1644685620396,1.44837625,97.406,97.342,0.25]
[1644685620598,5.134,97.405,97.342,0.25]
[1644685620798,5.134,97.405,97.37,15.4072]
[1644685621198,1.44837625,97.403,97.363,42.69533239]
[1644685621899,1.44837625,97.404,97.363,42.69533239]
[1644685622701,1.44837625,97.403,97.363,42.69533239]
[1644685623404,1.44837625,97.402,97.363,42.69533239]
[1644685623601,1.44837625,97.403,97.36,15.4086]
[1644685623802,1.44837625,97.399,97.342,0.25]
[1644685624002,1.44837625,97.397,97.34,15.411]
[1644685624206,1.44837625,97.393,97.34,15.411]
[1644685624607,1.44837625,97.391,97.341,41.48833914]
[1644685624908,1.44837625,97.396,97.341,44.1122421]
[1644685625104,1.44837625,97.396,97.342,5.134]
[1644685625305,1.44837625,97.396,97.342,8.00790296]
[1644685625604,1.44837625,97.395,97.343,2.62390296]
[1644685625804,1.44837625,97.395,97.35,15.4094]
[1644685626006,5.134,97.411,97.35,15.4094]
[1644685626007,1.44837625,97.408,97.35,15.4094]
[1644685626205,42.90412881,97.419,97.351,7.75790296]
[1644685626206,1.44837625,97.41,97.351,7.75790296]
[1644685626407,1.44837625,97.409,97.351,2.62390296]
[1644685626708,1.44837625,97.409,97.342,0.25]
[1644685626709,1.44837625,97.41,97.352,2.62390296]
[1644685626908,1.44837625,97.404,97.36,15.4059]
[1644685627113,1.44837625,97.4,97.343,2.62390296]
[1644685627509,1.44837625,97.397,97.343,2.62390296]
[1644685627909,1.44837625,97.398,97.343,2.62390296]
[1644685628511,0.25,97.397,97.342,0.25]
[1644685628714,1.44837625,97.394,97.342,0.25]
[1644685628911,5.135,97.393,97.35,15.4102]
[1644685629409,5.134,97.397,97.35,15.4102]
[1644685629810,1.69837625,97.396,97.35,15.4102]
[1644685630210,5.134,97.395,97.342,0.25]
[1644685630410,1.44837625,97.393,97.342,0.25]
[1644685630615,5.135,97.392,97.342,0.25]
[1644685630811,1.44837625,97.394,97.342,0.25]